bitfinex/quotes_SOLUSD_20250111
["timestamp","ask_amount","ask_price","bid_price","bid_amount"]
[1736554812443,0.99985982,187.62,187.5,6.4435]
[1736554812814,23.776884,187.61,187.5,6.4435]
[1736554813021,0.99964935,187.6,187.5,6.4435]
[1736554813623,43.776884,187.59,187.5,6.4435]
[1736554816969,0.99965308,187.58,187.5,6.4435]
[1736554817341,23.776884,187.57,187.5,6.4435]
[1736554817546,23.776884,187.55,187.5,6.4435]
[1736554818272,20.0,187.57,187.5,6.4435]
[1736554818561,23.776884,187.55,187.5,6.4435]
[1736554819355,23.776884,187.53,187.5,6.4435]
[1736554819743,23.776884,187.55,187.5,6.4435]
[1736554819947,23.776884,187.53,187.5,6.4435]
[1736554820370,23.776884,187.55,187.5,6.4435]
[1736554820572,0.9999936,187.54,187.5,6.4435]
[1736554820981,23.776884,187.53,187.5,6.4435]
[1736554821480,24.77679587,187.55,187.5,6.4435]
[1736554821684,23.776884,187.54,187.5,6.4435]
[1736554821861,20.0,187.54,187.5,6.4435]
[1736554822087,24.77681913,187.55,187.5,6.4435]
[1736554822377,23.776884,187.54,187.5,6.4435]
[1736554823045,20.99996596,187.54,187.5,6.4435]
[1736554824059,20.0,187.54,187.5,6.4435]
[1736554824360,20.99995013,187.54,187.5,6.4435]
[1736554824795,0.99995013,187.54,187.5,6.4435]
[1736554825451,23.776884,187.54,187.5,6.4435]
[1736554825848,2.6221104,187.65,187.5,6.4435]
[1736554826154,23.776884,187.64,187.5,6.4435]
[1736554826354,20.0,187.61,187.5,6.4435]
[1736554826577,0.99966611,187.6,187.5,6.4435]
[1736554827181,23.776884,187.59,187.5,6.4435]
[1736554827685,20.0,187.62,187.5,6.4435]
[1736554827986,23.776884,187.6,187.5,6.4435]
[1736554828654,23.776884,187.58,187.5,6.4435]
[1736554829172,20.0,187.62,187.5,6.4435]
[1736554829351,24.77660285,187.61,187.5,6.4435]
[1736554831183,23.776884,187.6,187.5,6.4435]
[1736554831391,23.776884,187.58,187.5,6.4435]
[1736554831752,23.776884,187.61,187.5,6.4435]
[1736554831972,0.99972789,187.6,187.5,6.4435]
[1736554832582,23.776884,187.59,187.5,6.4435]
[1736554832792,23.776884,187.57,187.5,6.4435]
[1736554832975,0.99985549,187.56,187.5,6.4435]
[1736554833350,23.776884,187.55,187.5,6.4435]
[1736554833670,0.99994868,187.54,187.5,6.4435]
[1736554833979,23.776884,187.53,187.5,6.4435]
[1736554834349,23.776884,187.56,187.5,6.4435]
[1736554834580,1.0000014,187.59,187.5,6.4435]
[1736554834950,23.776884,187.58,187.5,6.4435]
[1736554835155,23.776884,187.56,187.5,6.4435]
[1736554835564,0.99980594,187.57,187.5,6.4435]
[1736554835863,0.99980623,187.6,187.5,6.4435]
[1736554836061,23.776884,187.59,187.5,6.4435]
[1736554836356,0.99983855,187.58,187.5,6.4435]
[1736554836581,23.776884,187.59,187.5,6.4435]
[1736554836753,0.99977122,187.58,187.5,6.4435]
[1736554837757,23.776884,187.59,187.5,6.4435]
[1736554837993,0.99978962,187.58,187.5,6.4435]
[1736554838192,20.0,187.62,187.5,6.4435]
[1736554838193,23.776884,187.59,187.5,6.4435]
[1736554838368,0.9997566,187.58,187.5,6.4435]
[1736554839272,23.776884,187.59,187.5,6.4435]
[1736554839466,0.99981282,187.58,187.5,6.4435]
[1736554839787,23.776884,187.56,187.5,6.4435]
[1736554841901,0.999802,187.64,187.51,1.6545]
[1736554842065,20.0,187.6,187.51,1.6545]
[1736554842398,23.776884,187.61,187.51,1.6545]
[1736554842586,23.776884,187.59,187.51,1.6545]
[1736554844598,20.0,187.61,187.51,1.6545]
[1736554844816,23.776884,187.59,187.51,1.6545]
[1736554845568,0.99965001,187.67,187.53,1.6545]
[1736554845764,0.99965001,187.67,187.55,6.3549]
[1736554846080,23.776884,187.66,187.55,6.3549]
[1736554846282,0.99965001,187.67,187.56,0.40550122]
[1736554846491,0.999274,187.69,187.56,0.40550122]
[1736554846791,23.776884,187.68,187.57,1.6545]
[1736554847094,0.99927045,187.74,187.59,6.3549]
[1736554847281,0.99927045,187.74,187.6,0.40498045]
[1736554847478,20.0,187.73,187.6,0.40498045]
[1736554847798,0.99906448,187.72,187.6,0.40498045]
[1736554848501,23.776884,187.71,187.6,0.40498045]
[1736554849297,0.9990697,187.73,187.61,1.6545]
[1736554849503,0.99892424,187.76,187.62,6.75959901]
[1736554849799,20.99892424,187.76,187.62,6.75959901]
[1736554850372,23.776884,187.73,187.62,6.75959901]
[1736554852769,3.15538612,187.77,187.65,6.3549]
[1736554852986,0.99872504,187.79,187.66,0.4043006]
[1736554853990,0.99868657,187.8,187.68,20.0]
[1736554854189,0.99856616,187.81,187.7,7.658]
[1736554854393,0.99856616,187.81,187.71,0.40392252]
[1736554854698,23.776884,187.8,187.71,0.40392252]
[1736554855882,23.15538612,187.82,187.71,0.40392252]
[1736554857486,23.776884,187.81,187.71,0.40392252]
[1736554857689,3.15538612,187.82,187.71,0.40392252]
[1736554857886,0.99847154,187.87,187.73,6.0615]
[1736554858088,23.776884,187.85,187.74,0.40343291]
[1736554858381,24.7751702,187.85,187.75,1.5198]
[1736554858705,23.776884,187.83,187.75,1.5198]
[1736554858877,20.0,187.84,187.75,1.5198]
[1736554859214,23.776884,187.83,187.75,1.5198]
[1736554859584,5.38729158,187.89,187.76,0.40343732]
[1736554859771,0.9981586,187.92,187.77,6.0615]
[1736554859977,0.9981586,187.92,187.78,0.40308156]
[1736554860178,0.9981586,187.92,187.78,136.00308156]
[1736554860394,0.9981586,187.92,187.79,136.00289915]
[1736554860603,23.776884,187.91,187.8,5.00293327]
[1736554860875,23.776884,187.89,187.8,5.00293327]
[1736554861071,0.99806808,187.88,187.8,4.6]
[1736554861399,23.776884,187.87,187.8,4.6]
[1736554861604,0.99826323,187.86,187.8,4.6]
[1736554862406,20.0,187.87,187.8,4.6]
[1736554862597,23.776884,187.86,187.8,4.6]
[1736554864490,24.7751146,187.86,187.8,4.6]
[1736554865008,23.776884,187.86,187.8,4.6]
[1736554866303,24.77510883,187.86,187.8,4.6]
[1736554866509,23.776884,187.86,187.8,4.6]
[1736554866727,23.776884,187.84,187.77,6.0615]
[1736554867007,0.99842959,187.83,187.77,6.0615]
[1736554867394,23.776884,187.82,187.77,6.0615]
[1736554867709,0.99848842,187.81,187.77,6.0615]
[1736554867892,23.776884,187.8,187.75,1.5198]
[1736554868089,25.0,187.87,187.72,6.0606]
[1736554868090,23.776884,187.78,187.72,6.0606]
[1736554868290,23.776884,187.76,187.72,6.0606]
[1736554868500,20.0,187.8,187.72,6.0606]
[1736554868795,23.776884,187.83,187.72,6.0606]
[1736554868796,23.776884,187.77,187.72,6.0606]
[1736554868994,23.776884,187.75,187.68,6.0606]
[1736554869196,0.99892389,187.74,187.68,6.0606]
[1736554869502,10.0,187.83,187.68,6.0606]
[1736554869503,23.776884,187.79,187.68,6.0606]
[1736554869805,23.776884,187.77,187.68,6.0606]
[1736554870005,23.776884,187.75,187.68,6.0606]
[1736554870211,0.99888542,187.74,187.68,6.0606]
[1736554871096,23.776884,187.73,187.68,6.0606]
[1736554871299,0.99896211,187.72,187.68,6.0606]
[1736554871484,23.776884,187.76,187.68,6.0606]
[1736554871690,23.776884,187.74,187.68,6.0606]
[1736554872023,23.776884,187.72,187.68,6.0606]
[1736554872382,0.99894639,187.73,187.68,6.0606]
[1736554872383,23.776884,187.73,187.68,6.0606]
[1736554872593,24.77586107,187.73,187.68,6.0606]
[1736554874297,23.776884,187.73,187.68,6.0606]
[1736554874708,24.77580149,187.73,187.68,6.0606]
[1736554876033,24.77580149,187.73,187.64,6.0606]
[1736554876034,20.0,187.7,187.64,6.0606]
[1736554876216,24.77610168,187.69,187.64,6.0606]
[1736554877397,24.77610168,187.69,187.61,1.5268]
[1736554883193,23.776884,187.69,187.61,1.5268]
[1736554883412,0.99927291,187.75,187.61,1.5268]
[1736554884226,20.0,187.73,187.61,1.5268]
[1736554884428,23.776884,187.71,187.61,1.5268]
[1736554885624,23.776884,187.71,187.61,1.93179244]
[1736554886006,23.776884,187.71,187.61,1.5268]
[1736554887222,23.776884,187.69,187.61,1.5268]
[1736554887524,20.99922317,187.69,187.61,1.5268]
[1736554888525,20.0,187.73,187.61,1.5268]
[1736554888823,23.776884,187.71,187.61,1.5268]
[1736554889624,0.99901453,187.72,187.61,1.5268]
[1736554889824,20.99902044,187.73,187.63,6.1438]
[1736554890524,23.776884,187.72,187.63,6.1438]
[1736554891113,0.99901013,187.71,187.63,6.1438]
[1736554894531,23.776884,187.68,187.63,6.1438]
[1736554894729,0.99927988,187.67,187.63,6.1438]
[1736554896220,24.77614789,187.68,187.63,6.1438]
[1736554896520,23.776884,187.68,187.63,6.1438]
[1736554898340,20.0,187.72,187.63,6.1438]
[1736554898515,0.99910012,187.71,187.63,6.1438]
[1736554898917,23.776884,187.7,187.63,6.1438]
[1736554899116,23.776884,187.68,187.63,6.1438]
[1736554900142,0.99924207,187.67,187.63,6.1438]
[1736554901129,23.776884,187.66,187.63,6.1438]
[1736554902729,24.77619907,187.66,187.63,6.1438]
[1736554903138,24.77619907,187.66,187.61,1.5268]
[1736554906749,24.77619907,187.66,187.59,6.4072]
[1736554906953,20.0,187.63,187.56,1.5075]
[1736554907157,24.77648415,187.62,187.56,1.5075]
[1736554908246,24.77648415,187.62,187.55,6.4072]
[1736554909360,23.776884,187.62,187.55,6.4072]
[1736554909561,0.99966749,187.7,187.55,6.81288841]
[1736554909751,20.0,187.68,187.55,6.81288841]
[1736554910060,0.99931463,187.67,187.55,6.81288841]
[1736554910259,0.99931414,187.7,187.56,1.5075]
[1736554910462,0.99931414,187.7,187.57,0.40524859]
[1736554910637,20.0,187.68,187.57,0.40524859]
[1736554910958,23.776884,187.67,187.57,0.40524859]
[1736554914868,23.776884,187.65,187.56,1.91296165]
[1736554915164,23.776884,187.63,187.57,4.6]
[1736554915663,0.99948727,187.62,187.57,4.6]
[1736554918266,0.99950999,187.67,187.57,4.6]
[1736554918648,23.776884,187.69,187.57,4.6]
[1736554918963,83.0,187.71,187.57,4.6]
[1736554918964,23.776884,187.67,187.57,4.6]
[1736554919147,23.776884,187.65,187.57,4.6]
[1736554919859,23.776884,187.69,187.57,4.6]
[1736554920068,23.776884,187.67,187.57,4.6]
[1736554921567,23.776884,187.65,187.57,4.6]
[1736554923447,23.776884,187.63,187.56,1.5075]
[1736554923655,23.776884,187.63,187.56,6.1275]
[1736554923980,0.99942232,187.67,187.56,6.1275]
[1736554924178,0.99942232,187.67,187.56,6.53300828]
[1736554924755,20.0,187.68,187.56,6.53300828]
[1736554925262,23.776884,187.67,187.56,6.53300828]
[1736554926643,20.0,187.68,187.57,6.0383]
[1736554926853,1.5007,187.77,187.61,6.0383]
[1736554927052,0.99904418,187.76,187.61,6.44323889]
[1736554927562,23.776884,187.73,187.61,6.44323889]
[1736554927745,23.776884,187.71,187.61,6.44323889]
[1736554928361,23.776884,187.69,187.61,6.44323889]
[1736554928760,23.776884,187.72,187.61,6.44323889]
[1736554928953,0.99903904,187.71,187.61,6.44323889]
[1736554929363,0.99904559,187.73,187.61,6.44323889]
[1736554929875,23.776884,187.72,187.61,6.44323889]
[1736554930575,0.9989949,187.72,187.61,6.44323889]
[1736554930756,23.776884,187.73,187.61,6.44323889]
[1736554932455,23.776884,187.73,187.61,19.76823889]
[1736554932776,23.776884,187.73,187.62,1.6269]
[1736554933273,0.99896086,187.72,187.62,1.6269]
[1736554933477,23.776884,187.7,187.62,1.6269]
[1736554933675,23.776884,187.68,187.62,1.6269]
[1736554933986,23.776884,187.66,187.62,1.6269]
[1736554934173,23.776884,187.69,187.62,1.6269]
[1736554934354,20.0,187.73,187.63,0.40500871]
[1736554934861,24.77583671,187.72,187.62,1.6269]
[1736554935060,0.99895271,187.72,187.62,1.6269]
[1736554935262,0.99900904,187.74,187.62,1.6269]
[1736554935683,23.776884,187.73,187.62,1.6269]
[1736554935992,0.99901492,187.72,187.62,1.6269]
[1736554938954,43.776884,187.71,187.62,1.6269]
[1736554939349,0.99909952,187.7,187.62,1.6269]
[1736554940383,0.99920209,187.76,187.62,1.6269]
[1736554940560,0.99880807,187.79,187.64,6.1853]
[1736554940771,0.99880807,187.79,187.65,2.06344261]
[1736554941298,23.776884,187.76,187.65,2.06344261]
[1736554941449,24.77568321,187.76,187.65,2.06344261]
[1736554942191,24.77568321,187.76,187.65,82.86344261]
[1736554942487,23.776884,187.76,187.65,82.86344261]
[1736554945069,20.0,187.77,187.65,82.86344261]
[1736554945070,23.776884,187.74,187.65,82.86344261]
[1736554945267,23.776884,187.72,187.66,4.6]
[1736554945563,23.776884,187.75,187.66,4.6]
[1736554945765,0.99897666,187.74,187.66,4.6]
[1736554945965,23.776884,187.73,187.66,4.6]
[1736554946162,23.776884,187.71,187.65,1.6591]
[1736554946577,20.0,187.76,187.65,1.6591]
[1736554946810,0.99890628,187.75,187.65,1.6591]
[1736554946962,23.776884,187.74,187.65,1.6591]
[1736554947286,23.776884,187.72,187.65,1.6591]
[1736554947471,23.776884,187.74,187.65,1.6591]
[1736554947670,23.776884,187.72,187.65,1.6591]
[1736554948083,23.776884,187.74,187.65,1.6591]
[1736554948285,20.0,187.69,187.65,1.6591]
[1736554948584,0.99920797,187.68,187.64,6.1853]
[1736554948773,23.776884,187.69,187.64,6.1853]
[1736554948975,0.99920469,187.68,187.64,6.1853]
[1736554949192,24.77607852,187.69,187.64,6.1853]
[1736554949571,0.99916444,187.71,187.64,6.1853]
[1736554949964,20.0,187.7,187.64,6.1853]
[1736554951493,24.77602403,187.69,187.64,6.1853]
[1736554955901,24.77602403,187.69,187.6,1.6591]
[1736554956193,23.776884,187.65,187.6,1.6591]
[1736554957072,24.77622369,187.65,187.6,1.6591]
[1736554958096,23.776884,187.65,187.6,1.6591]
[1736554960902,20.0,187.72,187.6,1.6591]
[1736554961107,0.99915616,187.71,187.6,1.6591]
[1736554961605,23.776884,187.7,187.6,1.6591]
[1736554961900,23.776884,187.68,187.6,1.6591]
[1736554962288,20.0,187.68,187.6,1.6591]
[1736554962878,23.776884,187.67,187.6,1.6591]
[1736554963073,20.0,187.69,187.6,1.6591]
[1736554963392,23.776884,187.68,187.6,1.6591]
[1736554964308,2.66366416,187.75,187.6,1.6591]
[1736554964309,20.0,187.73,187.6,1.6591]
[1736554964486,0.99905958,187.72,187.6,1.6591]
[1736554964806,43.776884,187.71,187.61,0.40496969]
[1736554966006,23.776884,187.69,187.61,0.40496969]
[1736554966198,23.776884,187.69,187.6,1.6591]
[1736554967096,23.776884,187.7,187.6,1.6591]
[1736554968202,20.0,187.69,187.6,1.6591]
[1736554969617,43.776884,187.69,187.6,1.6591]
[1736554977115,0.99913082,187.68,187.6,1.6591]
[1736554977711,23.776884,187.67,187.6,1.6591]
[1736554978027,23.776884,187.65,187.55,1.6498]
[1736554978201,23.776884,187.63,187.55,6.2498]
[1736554978402,0.9995681,187.62,187.55,6.2498]
[1736554979213,23.776884,187.61,187.55,1.6498]
[1736554979418,23.776884,187.59,187.54,6.0532]
[1736554979617,0.99976539,187.58,187.54,6.0532]
[1736554981444,0.99976539,187.58,187.52,135.6]
[1736554981600,23.776884,187.61,187.52,135.6]
[1736554981806,23.776884,187.59,187.52,135.6]
[1736554982733,20.0,187.59,187.52,135.6]
[1736554983434,23.776884,187.6,187.52,135.6]
[1736554983619,0.99972496,187.59,187.52,135.6]
[1736554984047,23.776884,187.58,187.51,54.2498]
[1736554984214,0.99986237,187.57,187.51,49.6498]
[1736554984408,0.99986237,187.57,187.42,26.359544]
[1736554984409,20.0,187.53,187.45,7.703]
[1736554985036,1.00005946,187.58,187.45,7.703]
[1736554985224,1.00005946,187.58,187.46,0.40661982]
[1736554985424,23.776884,187.57,187.46,0.40661982]
[1736554985834,23.776884,187.62,187.46,0.40661982]
[1736554986042,20.0,187.59,187.46,0.40661982]
[1736554986230,23.776884,187.57,187.46,0.40661982]
[1736554986741,0.99975491,187.58,187.46,0.40661982]
[1736554986939,20.0,187.54,187.45,7.703]
[1736554987115,24.77690317,187.53,187.45,7.703]
[1736554987533,24.77690317,187.53,187.45,6.0532]
[1736554987839,23.776884,187.49,187.45,6.0532]
[1736554988043,1.00030363,187.48,187.45,6.0532]
[1736554988415,23.776884,187.47,187.4,12.363]
[1736554988615,1.00038839,187.46,187.4,12.363]
[1736554988816,23.776884,187.47,187.4,12.363]
[1736554989050,20.0,187.48,187.4,12.363]
[1736554989219,1.0002875,187.54,187.4,12.363]
[1736554989723,23.776884,187.53,187.4,12.363]
[1736554989921,23.776884,187.51,187.4,12.363]
[1736554990123,23.776884,187.51,187.41,0.40713305]
[1736554990324,23.776884,187.51,187.4,12.363]
[1736554990834,23.776884,187.49,187.4,7.703]
[1736554991148,23.776884,187.47,187.4,7.703]
[1736554991319,23.776884,187.45,187.34,6.0532]
[1736554991650,23.776884,187.43,187.34,6.0532]
[1736554991823,20.0,187.47,187.35,0.40785583]
[1736554992238,20.0,187.47,187.36,0.37647]
[1736554992539,1.0003741,187.54,187.39,7.703]
[1736554992749,1.0003741,187.54,187.4,0.40710837]
[1736554992920,20.0,187.5,187.4,0.40710837]
[1736554993239,1.00008241,187.52,187.4,0.40710837]
[1736554993431,1.00008133,187.54,187.4,0.40710837]
[1736554994349,23.776884,187.53,187.4,0.40710837]
[1736554994545,1.0000444,187.52,187.4,0.40710837]
[1736554995246,24.77692975,187.53,187.4,0.40710837]
[1736554995445,24.77692975,187.53,187.42,20.0]
[1736554995743,6.371,187.6,187.44,1.6498]
[1736554995744,1.6196,187.6,187.44,1.6498]
[1736554995950,0.99979758,187.59,187.45,0.40644568]
[1736554996247,20.0,187.55,187.45,0.40644568]
[1736554997350,0.99979758,187.59,187.45,0.40644568]
[1736554997651,23.776884,187.58,187.46,6.4808]
[1736554997826,20.0,187.61,187.47,0.40622163]
[1736554998020,0.99968555,187.63,187.47,0.40622163]
[1736554998021,0.99968751,187.63,187.47,0.40622163]
[1736554998216,0.99968751,187.63,187.48,1.95457]
[1736554998436,0.99968751,187.63,187.49,0.40591143]
[1736554998644,20.0,187.59,187.49,0.40591143]
[1736554999029,23.776884,187.64,187.49,20.40591143]
[1736554999232,23.776884,187.62,187.49,20.40591143]
[1736554999839,0.99957695,187.61,187.49,20.40591143]
[1736555000647,23.776884,187.6,187.48,1.98416657]
[1736555000856,23.776884,187.6,187.48,1.5781]
[1736555000857,0.99975489,187.59,187.48,1.5781]
[1736555001862,23.776884,187.58,187.48,1.5781]
[1736555002054,0.9997853,187.57,187.48,1.5781]
[1736555002223,23.776884,187.58,187.48,1.5781]
[1736555002938,1.5124,187.65,187.5,20.0]
[1736555003150,23.776884,187.63,187.51,0.40599131]
[1736555003359,0.9995749,187.62,187.51,0.40599131]
[1736555003532,0.99952946,187.64,187.51,0.40599131]
[1736555004227,23.776884,187.63,187.51,0.40599131]
[1736555004426,0.99951352,187.65,187.52,6.4808]
[1736555004627,0.99937366,187.68,187.53,0.40559785]
[1736555004847,0.99937366,187.68,187.54,4.64]
[1736555005458,20.99937366,187.68,187.55,1.5781]
[1736555005659,0.99938255,187.67,187.55,1.5781]
[1736555006935,23.776884,187.66,187.55,1.5781]
[1736555007260,24.7762457,187.66,187.55,1.98367393]
[1736555008556,0.9993617,187.66,187.56,6.5816]
[1736555008773,0.99924673,187.68,187.57,0.40534399]
[1736555009065,0.99924673,187.73,187.57,5.74834399]
[1736555009240,23.776884,187.72,187.57,5.74834399]
[1736555009439,20.0,187.69,187.57,5.74834399]
[1736555009749,23.776884,187.7,187.57,19.07664399]
[1736555010146,0.99914973,187.69,187.57,19.07664399]
[1736555012134,23.776884,187.7,187.57,19.07664399]
[1736555012335,24.77600505,187.7,187.57,19.07664399]
[1736555012535,0.99914754,187.69,187.58,8.1598]
[1736555012831,0.99914754,187.69,187.59,0.40522393]
[1736555013054,24.7760707,187.7,187.59,0.40522393]
[1736555013962,23.776884,187.7,187.59,0.40522393]
[1736555015849,20.0,187.71,187.59,0.40522393]
[1736555016161,0.99912858,187.76,187.63,1.5782]
[1736555016335,0.99887373,187.78,187.64,0.40459799]
[1736555016543,0.99887373,187.78,187.65,4.64]
[1736555017056,20.0,187.74,187.65,4.64]
[1736555017262,23.776884,187.75,187.65,4.64]
[1736555017444,2.60854102,187.8,187.67,6.4535]
[1736555017964,23.776884,187.79,187.67,6.4535]
[1736555018148,20.0,187.76,187.67,6.4535]
[1736555019264,20.99878575,187.78,187.67,6.4535]
[1736555019440,23.776884,187.77,187.67,6.4535]
[1736555019646,23.776884,187.77,187.68,1.5609]
[1736555020746,0.99874139,187.76,187.68,1.5609]
[1736555021468,24.77564534,187.77,187.68,1.5609]
[1736555023850,23.776884,187.77,187.68,1.5609]
[1736555024669,0.99870722,187.83,187.68,1.96515682]
[1736555025441,0.99870722,187.83,187.7,6.4535]
[1736555025642,0.99870722,187.83,187.71,0.40380339]
[1736555026772,20.0,187.79,187.71,0.40380339]
[1736555027354,43.776884,187.84,187.71,0.40380339]
[1736555027657,20.0,187.79,187.71,0.40380339]
[1736555027966,23.776884,187.86,187.72,1.5609]
[1736555028166,23.776884,187.84,187.73,0.40368466]
[1736555028347,23.776884,187.82,187.73,0.40368466]
[1736555028548,23.776884,187.87,187.72,1.5609]
[1736555028846,0.99847602,187.86,187.72,1.5609]
[1736555029386,23.776884,187.83,187.72,1.5609]
[1736555029574,0.99847688,187.82,187.72,1.5609]
[1736555030480,23.776884,187.81,187.72,1.5609]
[1736555030693,24.77535746,187.81,187.72,6.1609]
[1736555032158,24.77535746,187.81,187.73,4.6]
[1736555032359,20.0,187.78,187.72,1.5609]
[1736555032555,23.776884,187.76,187.7,6.4535]
[1736555032866,23.776884,187.74,187.7,6.4535]
[1736555033176,23.776884,187.76,187.7,6.4535]
[1736555033379,20.0,187.81,187.7,6.4535]
[1736555033380,23.776884,187.74,187.7,6.4535]
[1736555033578,20.0,187.76,187.7,6.4535]
[1736555033877,23.776884,187.74,187.7,6.4535]
[1736555034889,23.776884,187.77,187.7,6.4535]
[1736555035070,23.776884,187.75,187.7,6.4535]
[1736555035457,0.99886778,187.74,187.7,6.4535]
[1736555037874,24.77579233,187.75,187.7,6.4535]
[1736555038977,20.99889174,187.74,187.7,6.4535]
[1736555039680,20.0,187.74,187.7,6.4535]
[1736555041283,43.776884,187.81,187.7,6.4535]
[1736555041491,20.0,187.76,187.7,6.4535]
[1736555047790,0.99870411,187.84,187.7,222.8535]
[1736555047989,0.99870411,187.84,187.71,0.40425874]
[1736555048292,0.99870411,187.84,187.72,1.5945]
[1736555048492,23.776884,187.83,187.72,1.5945]
[1736555049293,23.776884,187.83,187.72,217.9945]
[1736555049494,23.776884,187.82,187.73,0.4037426]
[1736555049794,20.99844604,187.83,187.73,0.4037426]
[1736555050089,20.0,187.84,187.73,0.4037426]
[1736555050294,43.776884,187.83,187.73,0.4037426]
[1736555052572,43.776884,187.83,187.74,222.8863]
[1736555055394,0.99844851,187.82,187.74,222.8863]
[1736555055571,0.99844851,187.82,187.74,227.4463]
[1736555057999,0.99844851,187.82,187.74,222.8863]
[1736555058397,0.99844851,187.82,187.74,6.4863]
[1736555058602,0.99844851,187.82,187.7,141.9899]
[1736555058603,2.56094851,187.82,187.7,141.9899]
[1736555058983,20.0,187.76,187.67,1.6007]
[1736555059200,20.0,187.71,187.66,6.3899]
[1736555059378,24.77602425,187.7,187.66,6.3899]
[1736555060005,24.77602425,187.7,187.63,82.4007]
[1736555060593,24.77602425,187.7,187.63,1.6007]
[1736555060795,20.0,187.67,187.63,1.6007]
[1736555061104,0.99928727,187.66,187.63,1.6007]
[1736555061406,0.99928727,187.66,187.61,10.9699]
[1736555061704,0.99928727,187.66,187.61,6.3899]
[1736555062395,0.99928727,187.66,187.59,1.6007]
[1736555062605,23.776884,187.65,187.59,1.6007]
[1736555062917,23.776884,187.66,187.59,1.6007]
[1736555063487,20.0,187.67,187.59,1.6007]
[1736555063699,23.776884,187.66,187.59,1.6007]
[1736555064830,24.77618483,187.66,187.59,1.6007]
[1736555069915,23.776884,187.66,187.59,1.6007]
[1736555070821,24.77619196,187.66,187.59,1.6007]
[1736555071405,20.0,187.71,187.59,1.6007]
[1736555071603,0.99921224,187.7,187.59,1.6007]
[1736555072226,44.77609624,187.7,187.59,1.6007]
[1736555072419,20.0,187.66,187.59,1.6007]
[1736555075027,20.0,187.66,187.59,82.4007]
[1736555076206,20.0,187.71,187.59,218.4059966]
[1736555076407,0.99909941,187.7,187.6,6.3899]
[1736555076710,0.99909687,187.72,187.6,6.3899]
[1736555077204,23.776884,187.71,187.6,6.3899]
[1736555077406,0.99908834,187.7,187.6,6.3899]
[1736555077705,0.99908834,187.7,187.6,6.79493043]
[1736555079119,20.0,187.66,187.6,222.7899]
[1736555080150,20.0,187.66,187.6,87.1899]
[1736555080323,20.0,187.66,187.6,80.8]
[1736555080324,0.99925643,187.65,187.6,80.8]
[1736555082241,23.776884,187.64,187.6,80.8]
[1736555082432,23.776884,187.62,187.56,6.5098]
[1736555082634,0.99959615,187.61,187.56,6.5098]
[1736555090345,23.776884,187.64,187.56,6.5098]
[1736555090551,20.0,187.61,187.56,6.5098]
[1736555098963,20.0,187.61,187.56,87.3098]
[1736555102252,24.77638596,187.6,187.56,80.8]
[1736555103057,43.776884,187.57,187.51,6.5738]
[1736555103258,43.776884,187.57,187.49,80.8]
[1736555103259,23.776884,187.55,187.49,80.8]
[1736555103447,0.999962,187.54,187.49,80.8]
[1736555104566,2.53048395,187.63,187.49,216.4]
[1736555104943,20.0,187.61,187.49,216.4]
[1736555105143,23.776884,187.59,187.49,216.4]
[1736555105379,0.99976373,187.58,187.49,216.4]
[1736555105874,1.5306,187.68,187.54,222.9738]
[1736555106078,1.5306,187.68,187.55,0.4054081]
[1736555106450,23.776884,187.67,187.55,0.4054081]
[1736555107182,23.776884,187.65,187.55,0.4054081]
[1736555107759,23.776884,187.67,187.55,0.4054081]
[1736555108083,23.776884,187.65,187.55,0.4054081]
[1736555108249,1.5306,187.68,187.55,0.4054081]
[1736555108250,23.776884,187.67,187.55,0.4054081]
[1736555111058,20.0,187.64,187.55,216.8054081]
[1736555111382,20.0,187.64,187.55,220.98]
[1736555111682,24.77635535,187.63,187.55,80.8]